[Event "Early-Titled-Tuesday-Blitz-February-20-2024"]
[Site "Chess.com"]
[Date "2024.02.20"]
[Round "3"]
[White "HATilay"]
[Black "MightyGMpretender"]
[Result "1/2-1/2"]
[WhiteElo "2635"]
[BlackElo "2868"]
[TimeControl "180+1"]
[EndTime "8:29:11 PST"]
[Termination "Game drawn by repetition"]

1. e4 {[%clk 0:03:00.9]} 1... c5 {[%clk 0:02:51.6]} 2. Nf3 {[%clk 0:03:00.9]}
2... Nc6 {[%clk 0:02:51.7]} 3. Bb5 {[%clk 0:03:00.5]} 3... Nf6 {[%clk
0:02:51.5]} 4. Nc3 {[%clk 0:02:55.2]} 4... Qc7 {[%clk 0:02:51.8]} 5. O-O {[%clk
0:02:53.5]} 5... Nd4 {[%clk 0:02:52.2]} 6. Re1 {[%clk 0:02:51]} 6... Ng4 {[%clk
0:02:52.7]} 7. g3 {[%clk 0:02:49.4]} 7... Nxf3+ {[%clk 0:02:52.2]} 8. Qxf3
{[%clk 0:02:49.4]} 8... Ne5 {[%clk 0:02:52.9]} 9. Qg2 {[%clk 0:02:13.1]} 9... e6
{[%clk 0:02:52.8]} 10. Bf1 {[%clk 0:02:09.6]} 10... Be7 {[%clk 0:02:48.1]} 11.
d3 {[%clk 0:02:07.1]} 11... a6 {[%clk 0:02:46.4]} 12. a4 {[%clk 0:02:06.6]}
12... b6 {[%clk 0:02:46.6]} 13. f4 {[%clk 0:02:06]} 13... Nc6 {[%clk 0:02:46.4]}
14. f5 {[%clk 0:02:03.3]} 14... Bb7 {[%clk 0:02:45.8]} 15. Bf4 {[%clk 0:02:03]}
15... Bd6 {[%clk 0:02:43.7]} 16. Ne2 {[%clk 0:01:32.9]} 16... Nb4 {[%clk
0:02:35]} 17. Bxd6 {[%clk 0:00:48.5]} 17... Qxd6 {[%clk 0:02:34.7]} 18. Nc3
{[%clk 0:00:45.4]} 18... O-O-O {[%clk 0:02:28.8]} 19. Qf2 {[%clk 0:00:42.8]}
19... Kb8 {[%clk 0:02:23.2]} 20. Bg2 {[%clk 0:00:43.1]} 20... Qd4 {[%clk
0:02:22.7]} 21. Rac1 {[%clk 0:00:31]} 21... e5 {[%clk 0:02:22.7]} 22. f6 {[%clk
0:00:22.8]} 22... gxf6 {[%clk 0:02:21.8]} 23. Rf1 {[%clk 0:00:20.4]} 23... f5
{[%clk 0:02:18.7]} 24. exf5 {[%clk 0:00:18.7]} 24... f6 {[%clk 0:02:09.2]} 25.
Bxb7 {[%clk 0:00:18.1]} 25... Kxb7 {[%clk 0:02:09.4]} 26. Qxd4 {[%clk
0:00:18.7]} 26... cxd4 {[%clk 0:02:09.2]} 27. Ne4 {[%clk 0:00:19.3]} 27... Nd5
{[%clk 0:02:09.3]} 28. c4 {[%clk 0:00:18.3]} 28... dxc3 {[%clk 0:02:04.7]} 29.
bxc3 {[%clk 0:00:18.5]} 29... Rhf8 {[%clk 0:02:03.2]} 30. c4 {[%clk 0:00:18.8]}
30... Nb4 {[%clk 0:02:03.5]} 31. c5 {[%clk 0:00:08.6]} 31... b5 {[%clk
0:01:27.3]} 32. axb5 {[%clk 0:00:08.2]} 32... axb5 {[%clk 0:01:28.2]} 33. Rb1
{[%clk 0:00:08.6]} 33... Nxd3 {[%clk 0:01:28.9]} 34. Rxb5+ {[%clk 0:00:09.1]}
34... Kc6 {[%clk 0:01:29.3]} 35. Rfb1 {[%clk 0:00:06.6]} 35... Kd5 {[%clk
0:01:26.1]} 36. Nc3+ {[%clk 0:00:04.7]} 36... Kc4 {[%clk 0:01:26.5]} 37. Ne2
{[%clk 0:00:04]} 37... Ra8 {[%clk 0:01:17.5]} 38. R5b3 {[%clk 0:00:03.6]} 38...
e4 {[%clk 0:01:14.9]} 39. Rc3+ {[%clk 0:00:03.8]} 39... Kd5 {[%clk 0:01:13.7]}
40. Rd1 {[%clk 0:00:03.2]} 40... Ke5 {[%clk 0:01:12.6]} 41. Nf4 {[%clk
0:00:03.3]} 41... Nxf4 {[%clk 0:01:12.5]} 42. gxf4+ {[%clk 0:00:03.9]} 42...
Kxf4 {[%clk 0:01:10.7]} 43. Rxd7 {[%clk 0:00:04.5]} 43... Ra1+ {[%clk
0:01:10.6]} 44. Kg2 {[%clk 0:00:05.1]} 44... Ra2+ {[%clk 0:01:10.7]} 45. Kh3
{[%clk 0:00:05.7]} 45... e3 {[%clk 0:01:05.9]} 46. Re7 {[%clk 0:00:05.6]} 46...
Re2 {[%clk 0:01:02.6]} 47. c6 {[%clk 0:00:05.6]} 47... Rg8 {[%clk 0:00:49]} 48.
Rc4+ {[%clk 0:00:06]} 48... Kf3 {[%clk 0:00:48.9]} 49. c7 {[%clk 0:00:06.5]}
49... Rgg2 {[%clk 0:00:49.1]} 50. Rxe3+ {[%clk 0:00:01.5]} 50... Kxe3 {[%clk
0:00:50]} 51. Rc3+ {[%clk 0:00:02]} 51... Kf4 {[%clk 0:00:44.4]} 52. Rc4+ {[%clk
0:00:02.5]} 52... Kg5 {[%clk 0:00:41.8]} 53. c8=Q {[%clk 0:00:02.5]} 53... Rxh2+
{[%clk 0:00:38.9]} 54. Kg3 {[%clk 0:00:03]} 54... Rhg2+ {[%clk 0:00:38.9]} 55.
Kf3 {[%clk 0:00:03.5]} 55... Rgf2+ {[%clk 0:00:38.9]} 56. Kg3 {[%clk 0:00:04.1]}
56... Rg2+ {[%clk 0:00:36.3]} 57. Kf3 {[%clk 0:00:04.6]} 57... Rgf2+ {[%clk
0:00:36.6]} 58. Kg3 {[%clk 0:00:05.2]} 58... Rg2+ {[%clk 0:00:28.9]} 1/2-1/2

[Event "Early-Titled-Tuesday-Blitz-February-20-2024"]
[Site "Chess.com"]
[Date "2024.02.20"]
[Round "3"]
[White "platy3"]
[Black "Makswolf200817"]
[Result "0-1"]
[WhiteElo "2955"]
[BlackElo "2753"]
[TimeControl "180+1"]
[EndTime "8:29:14 PST"]
[Termination "Makswolf200817 won on time"]

1. e4 {[%clk 0:03:00.9]} 1... e6 {[%clk 0:02:57.9]} 2. d4 {[%clk 0:02:58.6]}
2... d5 {[%clk 0:02:58.4]} 3. Nc3 {[%clk 0:02:59.1]} 3... Bb4 {[%clk 0:02:58.4]}
4. Ne2 {[%clk 0:02:58.4]} 4... dxe4 {[%clk 0:02:48.8]} 5. a3 {[%clk 0:02:58.3]}
5... Be7 {[%clk 0:02:42.5]} 6. Nxe4 {[%clk 0:02:57.9]} 6... Nf6 {[%clk
0:02:43.2]} 7. Nxf6+ {[%clk 0:02:58.3]} 7... Bxf6 {[%clk 0:02:43.4]} 8. Be3
{[%clk 0:02:59.2]} 8... Bd7 {[%clk 0:02:41.2]} 9. Qd2 {[%clk 0:02:57.2]} 9...
Bc6 {[%clk 0:02:40.7]} 10. Ng3 {[%clk 0:02:57.3]} 10... h5 {[%clk 0:02:30]} 11.
O-O-O {[%clk 0:02:39.3]} 11... h4 {[%clk 0:02:23.3]} 12. Ne2 {[%clk 0:02:39.3]}
12... h3 {[%clk 0:02:16.6]} 13. f3 {[%clk 0:02:23.9]} 13... Nd7 {[%clk
0:02:00.5]} 14. Ng3 {[%clk 0:02:13.9]} 14... hxg2 {[%clk 0:01:48.2]} 15. Bxg2
{[%clk 0:02:13.7]} 15... Nb6 {[%clk 0:01:47.8]} 16. Ne4 {[%clk 0:01:33.5]} 16...
Bxe4 {[%clk 0:01:30.9]} 17. b3 {[%clk 0:01:11.3]} 17... Bc6 {[%clk 0:01:22.9]}
18. c4 {[%clk 0:01:11.4]} 18... Qe7 {[%clk 0:01:21.3]} 19. Kb2 {[%clk 0:01:10]}
19... O-O-O {[%clk 0:01:20.9]} 20. Ka2 {[%clk 0:01:10.2]} 20... Rh4 {[%clk
0:01:16.8]} 21. f4 {[%clk 0:01:08.9]} 21... Bxg2 {[%clk 0:01:15.8]} 22. Qxg2
{[%clk 0:01:09.8]} 22... Rh5 {[%clk 0:01:12.8]} 23. Qd2 {[%clk 0:01:03.1]} 23...
c5 {[%clk 0:01:05.9]} 24. Qe2 {[%clk 0:01:02.6]} 24... Rdh8 {[%clk 0:00:48.2]}
25. dxc5 {[%clk 0:01:00.2]} 25... Nd7 {[%clk 0:00:48.5]} 26. b4 {[%clk 0:00:58]}
26... e5 {[%clk 0:00:43.6]} 27. Qg2 {[%clk 0:00:44.7]} 27... Qe6 {[%clk
0:00:36.5]} 28. Rd5 {[%clk 0:00:39.5]} 28... Rh3 {[%clk 0:00:32.2]} 29. Bc1
{[%clk 0:00:35]} 29... exf4 {[%clk 0:00:21.7]} 30. Bxf4 {[%clk 0:00:34.8]} 30...
Re8 {[%clk 0:00:22.4]} 31. Rhd1 {[%clk 0:00:29.8]} 31... Qe2+ {[%clk 0:00:22.2]}
32. Qxe2 {[%clk 0:00:14.3]} 32... Rxe2+ {[%clk 0:00:23.1]} 33. R1d2 {[%clk
0:00:15]} 33... Rxd2+ {[%clk 0:00:22.9]} 34. Rxd2 {[%clk 0:00:15.9]} 34... Rh4
{[%clk 0:00:21.8]} 35. Bg3 {[%clk 0:00:03.8]} 35... Rxc4 {[%clk 0:00:21.7]} 36.
Re2 {[%clk 0:00:04.5]} 36... Kd8 {[%clk 0:00:19.4]} 37. Kb3 {[%clk 0:00:04.9]}
37... Rd4 {[%clk 0:00:18.7]} 38. Rc2 {[%clk 0:00:03.2]} 38... Rd3+ {[%clk
0:00:18.5]} 39. Ka2 {[%clk 0:00:03.2]} 39... Be5 {[%clk 0:00:15]} 40. Bf2 {[%clk
0:00:03.3]} 40... Nf6 {[%clk 0:00:13.5]} 41. c6 {[%clk 0:00:03.6]} 41... bxc6
{[%clk 0:00:14.2]} 42. Bxa7 {[%clk 0:00:03.9]} 42... Kd7 {[%clk 0:00:13.2]} 43.
Rg2 {[%clk 0:00:02.7]} 43... Nd5 {[%clk 0:00:12.8]} 44. Bc5 {[%clk 0:00:02.1]}
44... f5 {[%clk 0:00:11.3]} 45. a4 {[%clk 0:00:02.2]} 45... Nc3+ {[%clk
0:00:09.9]} 46. Kb3 {[%clk 0:00:02.4]} 46... Ne4+ {[%clk 0:00:10.3]} 47. Ka2
{[%clk 0:00:01.6]} 47... Nxc5 {[%clk 0:00:10.2]} 48. bxc5 {[%clk 0:00:02.5]}
48... f4 {[%clk 0:00:10.1]} 0-1

[Event "Early-Titled-Tuesday-Blitz-February-20-2024"]
[Site "Chess.com"]
[Date "2024.02.20"]
[Round "3"]
[White "SchmakAttack"]
[Black "IriBu"]
[Result "1/2-1/2"]
[WhiteElo "2811"]
[BlackElo "2593"]
[TimeControl "180+1"]
[EndTime "8:29:14 PST"]
[Termination "Game drawn by repetition"]

1. e4 {[%clk 0:03:00.9]} 1... d6 {[%clk 0:02:58.1]} 2. d4 {[%clk 0:02:59.6]}
2... Nf6 {[%clk 0:02:58.4]} 3. Nc3 {[%clk 0:02:59.5]} 3... a6 {[%clk 0:02:58.7]}
4. g3 {[%clk 0:02:46.2]} 4... g6 {[%clk 0:02:57.8]} 5. Bg2 {[%clk 0:02:46.3]}
5... Bg7 {[%clk 0:02:58.2]} 6. Nge2 {[%clk 0:02:45.5]} 6... O-O {[%clk
0:02:55.6]} 7. O-O {[%clk 0:02:45.7]} 7... e5 {[%clk 0:02:55.9]} 8. h3 {[%clk
0:02:43]} 8... Re8 {[%clk 0:02:53.2]} 9. dxe5 {[%clk 0:02:31]} 9... dxe5 {[%clk
0:02:47.8]} 10. Qxd8 {[%clk 0:02:31.9]} 10... Rxd8 {[%clk 0:02:47.7]} 11. Bg5
{[%clk 0:02:32.8]} 11... Re8 {[%clk 0:02:39.9]} 12. Rad1 {[%clk 0:02:26.9]}
12... h6 {[%clk 0:02:39.4]} 13. Be3 {[%clk 0:02:26.8]} 13... a5 {[%clk 0:02:22]}
14. Nb5 {[%clk 0:02:10.1]} 14... Na6 {[%clk 0:02:21.2]} 15. Nec3 {[%clk
0:02:10.4]} 15... Bd7 {[%clk 0:02:09.3]} 16. Rd2 {[%clk 0:02:00.7]} 16... Bxb5
{[%clk 0:01:58.2]} 17. Nxb5 {[%clk 0:02:00.7]} 17... Rad8 {[%clk 0:01:58.4]} 18.
Rfd1 {[%clk 0:01:58.4]} 18... Rxd2 {[%clk 0:01:58.2]} 19. Rxd2 {[%clk
0:01:59.3]} 19... Bf8 {[%clk 0:01:51.8]} 20. f3 {[%clk 0:01:34.3]} 20... Kg7
{[%clk 0:01:39]} 21. Bf1 {[%clk 0:01:32.5]} 21... Rc8 {[%clk 0:01:21.2]} 22. Na7
{[%clk 0:01:25.8]} 22... Re8 {[%clk 0:01:17]} 23. Bxa6 {[%clk 0:01:20.5]} 23...
bxa6 {[%clk 0:01:17.9]} 24. a4 {[%clk 0:00:48.1]} 24... Re6 {[%clk 0:01:01.6]}
25. Kf2 {[%clk 0:00:48.4]} 25... Ne8 {[%clk 0:00:49]} 26. Rd8 {[%clk 0:00:40.8]}
26... f5 {[%clk 0:00:49.2]} 27. Ke2 {[%clk 0:00:26.7]} 27... Kf7 {[%clk
0:00:29.9]} 28. b3 {[%clk 0:00:13.7]} 28... h5 {[%clk 0:00:25.4]} 29. Bd2 {[%clk
0:00:13]} 29... fxe4 {[%clk 0:00:22.3]} 30. fxe4 {[%clk 0:00:13.9]} 30... Nd6
{[%clk 0:00:22.8]} 31. Kd3 {[%clk 0:00:08.2]} 31... Rf6 {[%clk 0:00:17.3]} 32.
Nc6 {[%clk 0:00:07.9]} 32... Rf3+ {[%clk 0:00:16.3]} 33. Ke2 {[%clk 0:00:08.4]}
33... Rxg3 {[%clk 0:00:15.8]} 34. Nxe5+ {[%clk 0:00:08.9]} 34... Ke6 {[%clk
0:00:10]} 35. Bf4 {[%clk 0:00:07]} 35... Rg2+ {[%clk 0:00:09.4]} 36. Kf3 {[%clk
0:00:06.8]} 36... Be7 {[%clk 0:00:06]} 37. Rxd6+ {[%clk 0:00:04.4]} 37... cxd6
{[%clk 0:00:06.9]} 38. Kxg2 {[%clk 0:00:04.9]} 38... dxe5 {[%clk 0:00:07.4]} 39.
Bd2 {[%clk 0:00:05.3]} 39... Bd8 {[%clk 0:00:07.3]} 40. Kf3 {[%clk 0:00:04.2]}
40... g5 {[%clk 0:00:07.7]} 41. Be3 {[%clk 0:00:04.4]} 41... Kf6 {[%clk
0:00:08.1]} 42. Bd2 {[%clk 0:00:03.6]} 42... Kg6 {[%clk 0:00:08.6]} 43. Bc3
{[%clk 0:00:03.5]} 43... Kf6 {[%clk 0:00:08.9]} 44. Bb2 {[%clk 0:00:02.9]} 44...
Ke6 {[%clk 0:00:09.4]} 45. Bc1 {[%clk 0:00:03.3]} 45... Be7 {[%clk 0:00:09.4]}
46. Bd2 {[%clk 0:00:03.5]} 46... Bd8 {[%clk 0:00:10.1]} 47. c4 {[%clk
0:00:03.3]} 47... Kf6 {[%clk 0:00:08.5]} 48. Be3 {[%clk 0:00:03.7]} 48... Ke6
{[%clk 0:00:08.9]} 49. Bd2 {[%clk 0:00:01.7]} 49... Kd6 {[%clk 0:00:09.3]} 50.
Be3 {[%clk 0:00:01.2]} 50... Ke6 {[%clk 0:00:09.7]} 51. Bf2 {[%clk 0:00:01.4]}
51... Kd6 {[%clk 0:00:09.6]} 52. Be3 {[%clk 0:00:02.1]} 52... Ke6 {[%clk
0:00:10]} 1/2-1/2

[Event "Early-Titled-Tuesday-Blitz-February-20-2024"]
[Site "Chess.com"]
[Date "2024.02.20"]
[Round "3"]
[White "JonSnowNW1"]
[Black "SnekkerAndersen"]
[Result "1-0"]
[WhiteElo "2469"]
[BlackElo "2629"]
[TimeControl "180+1"]
[EndTime "8:29:15 PST"]
[Termination "JonSnowNW1 won by checkmate"]

1. c4 {[%clk 0:03:00.9]} 1... b5 {[%clk 0:02:57]} 2. b3 {[%clk 0:02:58.6]} 2...
Bb7 {[%clk 0:02:56.2]} 3. Bb2 {[%clk 0:02:54.6]} 3... bxc4 {[%clk 0:02:56.4]} 4.
bxc4 {[%clk 0:02:55.5]} 4... Nf6 {[%clk 0:02:52.6]} 5. Nc3 {[%clk 0:02:54.9]}
5... e5 {[%clk 0:02:48.7]} 6. Nf3 {[%clk 0:02:41.7]} 6... d6 {[%clk 0:02:46.4]}
7. d3 {[%clk 0:02:36.5]} 7... Be7 {[%clk 0:02:45.4]} 8. e4 {[%clk 0:02:15.3]}
8... O-O {[%clk 0:02:43.9]} 9. Be2 {[%clk 0:02:15.3]} 9... Nh5 {[%clk 0:02:32]}
10. O-O {[%clk 0:02:02.6]} 10... Nf4 {[%clk 0:02:31.7]} 11. Bc1 {[%clk
0:02:00.3]} 11... Nxe2+ {[%clk 0:02:30.5]} 12. Qxe2 {[%clk 0:02:01.2]} 12... Nd7
{[%clk 0:02:30.8]} 13. Rb1 {[%clk 0:02:00]} 13... Rb8 {[%clk 0:02:26.5]} 14. Be3
{[%clk 0:01:59.6]} 14... c5 {[%clk 0:02:22.8]} 15. Nd2 {[%clk 0:01:39.2]} 15...
f5 {[%clk 0:02:20.5]} 16. exf5 {[%clk 0:01:38.3]} 16... Rxf5 {[%clk 0:02:19.2]}
17. Qg4 {[%clk 0:01:35.2]} 17... Rf8 {[%clk 0:02:16.8]} 18. Nde4 {[%clk
0:01:27]} 18... Nf6 {[%clk 0:02:14]} 19. Qe6+ {[%clk 0:01:25.7]} 19... Kh8
{[%clk 0:02:13.1]} 20. Ng5 {[%clk 0:01:25.2]} 20... Qe8 {[%clk 0:01:59.1]} 21.
Qh3 {[%clk 0:01:20.6]} 21... Bc6 {[%clk 0:01:37.8]} 22. Ne6 {[%clk 0:01:12.7]}
22... Rg8 {[%clk 0:01:35.7]} 23. Ng5 {[%clk 0:00:50.3]} 23... h6 {[%clk
0:01:12]} 24. Rxb8 {[%clk 0:00:42.3]} 24... Qxb8 {[%clk 0:01:12.9]} 25. Nf7+
{[%clk 0:00:42]} 25... Kh7 {[%clk 0:01:13]} 26. Nxh6 {[%clk 0:00:37.7]} 26...
Bxg2 {[%clk 0:00:45.1]} 27. Qf5+ {[%clk 0:00:10.2]} 27... g6 {[%clk 0:00:44.6]}
28. Qe6 {[%clk 0:00:10.8]} 28... Bxf1 {[%clk 0:00:26.7]} 29. Qxe7+ {[%clk
0:00:10.7]} 29... Rg7 {[%clk 0:00:27.3]} 30. Qxf6 {[%clk 0:00:11.1]} 30... Bxd3
{[%clk 0:00:28]} 31. Ng4 {[%clk 0:00:10.5]} 31... Bf5 {[%clk 0:00:25.3]} 32.
Qh4+ {[%clk 0:00:10.4]} 32... Kg8 {[%clk 0:00:25.5]} 33. Nh6+ {[%clk 0:00:09.7]}
33... Kf8 {[%clk 0:00:21.4]} 34. Qf6+ {[%clk 0:00:09.8]} 34... Ke8 {[%clk
0:00:21.1]} 35. Qxg7 {[%clk 0:00:10.2]} 35... Qb2 {[%clk 0:00:19.5]} 36. Qf7+
{[%clk 0:00:10.3]} 36... Kd8 {[%clk 0:00:19.6]} 37. Bg5+ {[%clk 0:00:08.8]}
37... Kc8 {[%clk 0:00:19.8]} 38. Nxf5 {[%clk 0:00:09.5]} 38... gxf5 {[%clk
0:00:17.9]} 39. Qxf5+ {[%clk 0:00:10.1]} 39... Kb7 {[%clk 0:00:15.3]} 40. Qd7+
{[%clk 0:00:09.7]} 40... Ka8 {[%clk 0:00:15.4]} 41. Nb5 {[%clk 0:00:09.6]} 41...
Qb1+ {[%clk 0:00:13.9]} 42. Kg2 {[%clk 0:00:10.2]} 42... Qe4+ {[%clk 0:00:14.3]}
43. f3 {[%clk 0:00:10.5]} 43... Qe2+ {[%clk 0:00:14.3]} 44. Kg3 {[%clk
0:00:11.1]} 44... Qe1+ {[%clk 0:00:14.8]} 45. Kg4 {[%clk 0:00:11.8]} 45... Qg1+
{[%clk 0:00:09.5]} 46. Kf5 {[%clk 0:00:12.3]} 46... Qb1+ {[%clk 0:00:08.6]} 47.
Kf6 {[%clk 0:00:12.7]} 47... Kb8 {[%clk 0:00:08]} 48. Qc7+ {[%clk 0:00:12.7]}
48... Ka8 {[%clk 0:00:08.4]} 49. Qxa7# {[%clk 0:00:13.6]} 1-0

[Event "Early-Titled-Tuesday-Blitz-February-20-2024"]
[Site "Chess.com"]
[Date "2024.02.20"]
[Round "3"]
[White "MdChess1734"]
[Black "gshwbedhkhd"]
[Result "0-1"]
[WhiteElo "2389"]
[BlackElo "2619"]
[TimeControl "180+1"]
[EndTime "8:29:20 PST"]
[Termination "gshwbedhkhd won by checkmate"]

1. e4 {[%clk 0:02:56.5]} 1... f6 {[%clk 0:02:57.3]} 2. d4 {[%clk 0:02:52]} 2...
e6 {[%clk 0:02:53.4]} 3. Bd3 {[%clk 0:02:43.6]} 3... b6 {[%clk 0:02:41.5]} 4.
Nc3 {[%clk 0:02:41.8]} 4... Bb7 {[%clk 0:02:42]} 5. Nf3 {[%clk 0:02:07.5]} 5...
Ne7 {[%clk 0:02:41.1]} 6. O-O {[%clk 0:01:52.2]} 6... g6 {[%clk 0:02:37.2]} 7.
Be3 {[%clk 0:01:45]} 7... Bg7 {[%clk 0:02:36.7]} 8. Qd2 {[%clk 0:01:44.6]} 8...
h5 {[%clk 0:02:36.8]} 9. Rfe1 {[%clk 0:01:30.1]} 9... O-O {[%clk 0:02:31.1]} 10.
d5 {[%clk 0:01:01.1]} 10... e5 {[%clk 0:02:26.7]} 11. d6 {[%clk 0:00:55.1]}
11... cxd6 {[%clk 0:02:23.8]} 12. Bc4+ {[%clk 0:00:55.3]} 12... Kh7 {[%clk
0:02:23]} 13. Qxd6 {[%clk 0:00:55.8]} 13... Nc8 {[%clk 0:01:38.5]} 14. Qd2
{[%clk 0:00:46.6]} 14... Nc6 {[%clk 0:01:36.7]} 15. Rad1 {[%clk 0:00:45.8]}
15... d6 {[%clk 0:01:37]} 16. Nb5 {[%clk 0:00:45.9]} 16... Qe7 {[%clk
0:01:34.5]} 17. Nxd6 {[%clk 0:00:40.5]} 17... Rd8 {[%clk 0:01:34.8]} 18. Nxc8
{[%clk 0:00:39.8]} 18... Raxc8 {[%clk 0:01:33.8]} 19. Qe2 {[%clk 0:00:39.8]}
19... Qb4 {[%clk 0:01:21.4]} 20. c3 {[%clk 0:00:19]} 20... Qe7 {[%clk
0:01:15.9]} 21. Bd5 {[%clk 0:00:18]} 21... Rd6 {[%clk 0:01:14.5]} 22. c4 {[%clk
0:00:16.2]} 22... Na5 {[%clk 0:01:10]} 23. b3 {[%clk 0:00:15.5]} 23... b5 {[%clk
0:01:02.6]} 24. c5 {[%clk 0:00:14.7]} 24... Rdd8 {[%clk 0:01:01.4]} 25. b4
{[%clk 0:00:15]} 25... Nc6 {[%clk 0:00:53.6]} 26. Qxb5 {[%clk 0:00:14.4]} 26...
Rd7 {[%clk 0:00:47.8]} 27. a3 {[%clk 0:00:13.9]} 27... Rcd8 {[%clk 0:00:45.5]}
28. Rc1 {[%clk 0:00:13]} 28... Rc7 {[%clk 0:00:41.3]} 29. Rcd1 {[%clk
0:00:10.8]} 29... Ba8 {[%clk 0:00:38.9]} 30. Qc4 {[%clk 0:00:09.8]} 30... Rcd7
{[%clk 0:00:36.7]} 31. Rc1 {[%clk 0:00:05]} 31... Nd4 {[%clk 0:00:35.8]} 32.
Bxd4 {[%clk 0:00:04.5]} 32... exd4 {[%clk 0:00:35.8]} 33. Nxd4 {[%clk 0:00:04]}
33... Qe5 {[%clk 0:00:29.3]} 34. c6 {[%clk 0:00:03.9]} 34... Rc7 {[%clk
0:00:27.2]} 35. b5 {[%clk 0:00:04.3]} 35... f5 {[%clk 0:00:25.2]} 36. Ne6 {[%clk
0:00:04.8]} 36... Rdc8 {[%clk 0:00:25.1]} 37. Nxc7 {[%clk 0:00:04.9]} 37... Qxc7
{[%clk 0:00:25]} 38. exf5 {[%clk 0:00:05.2]} 38... Be5 {[%clk 0:00:24.7]} 39.
fxg6+ {[%clk 0:00:04.9]} 39... Kg7 {[%clk 0:00:25.3]} 40. Qe4 {[%clk 0:00:05.5]}
40... Bxh2+ {[%clk 0:00:24.5]} 41. Kh1 {[%clk 0:00:04.5]} 41... Bd6 {[%clk
0:00:25.4]} 42. Qd4+ {[%clk 0:00:04.5]} 42... Kh6 {[%clk 0:00:25.5]} 43. Re6
{[%clk 0:00:04.8]} 43... Bf4 {[%clk 0:00:24.9]} 44. g7+ {[%clk 0:00:04.5]} 44...
Kg5 {[%clk 0:00:25.2]} 45. Be4 {[%clk 0:00:04.7]} 45... Rd8 {[%clk 0:00:22.1]}
46. Rg6+ {[%clk 0:00:03.6]} 46... Kh4 {[%clk 0:00:22.1]} 47. Qc3 {[%clk
0:00:02.9]} 47... Qc8 {[%clk 0:00:18.4]} 48. g3+ {[%clk 0:00:02.3]} 48... Bxg3
{[%clk 0:00:18.6]} 49. Bf3 {[%clk 0:00:02.7]} 49... Qh3+ {[%clk 0:00:17.4]} 50.
Kg1 {[%clk 0:00:02.5]} 50... Qh2+ {[%clk 0:00:18.3]} 51. Kf1 {[%clk 0:00:01.9]}
51... Qxf2# {[%clk 0:00:19.2]} 0-1

[Event "Early-Titled-Tuesday-Blitz-February-20-2024"]
[Site "Chess.com"]
[Date "2024.02.20"]
[Round "3"]
[White "Zhigalko_Sergei"]
[Black "GameOverBro"]
[Result "1-0"]
[WhiteElo "2928"]
[BlackElo "2516"]
[TimeControl "180+1"]
[EndTime "8:29:23 PST"]
[Termination "Zhigalko_Sergei won by resignation"]

1. e4 {[%clk 0:03:00.9]} 1... d6 {[%clk 0:03:00.1]} 2. d4 {[%clk 0:03:00.7]}
2... Nf6 {[%clk 0:03:00.6]} 3. Nc3 {[%clk 0:03:01]} 3... e5 {[%clk 0:03:01.1]}
4. Nf3 {[%clk 0:03:00.7]} 4... Nbd7 {[%clk 0:03:01.1]} 5. Bc4 {[%clk 0:03:00.7]}
5... Be7 {[%clk 0:03:01.1]} 6. O-O {[%clk 0:03:01.2]} 6... c6 {[%clk 0:03:01.5]}
7. a4 {[%clk 0:03:01]} 7... h6 {[%clk 0:03:02.1]} 8. a5 {[%clk 0:02:44.9]} 8...
Qc7 {[%clk 0:03:02.4]} 9. Ba2 {[%clk 0:02:34.4]} 9... Nf8 {[%clk 0:02:51]} 10.
Be3 {[%clk 0:02:25.7]} 10... Ng6 {[%clk 0:02:50.7]} 11. h3 {[%clk 0:02:21.7]}
11... O-O {[%clk 0:02:50.2]} 12. Re1 {[%clk 0:02:20.1]} 12... Kh7 {[%clk
0:02:46.3]} 13. Qe2 {[%clk 0:02:10.1]} 13... Nh5 {[%clk 0:02:24.4]} 14. Bb3
{[%clk 0:01:14.7]} 14... Nhf4 {[%clk 0:02:21.7]} 15. Qf1 {[%clk 0:01:15]} 15...
Be6 {[%clk 0:02:22.2]} 16. Bxe6 {[%clk 0:00:52.6]} 16... Nxe6 {[%clk 0:02:15.9]}
17. Qc4 {[%clk 0:00:47.4]} 17... b5 {[%clk 0:01:37.5]} 18. axb6 {[%clk
0:00:43.4]} 18... axb6 {[%clk 0:01:38.4]} 19. d5 {[%clk 0:00:43]} 19... cxd5
{[%clk 0:01:13.2]} 20. Qxd5 {[%clk 0:00:43.1]} 20... Rxa1 {[%clk 0:01:00]} 21.
Rxa1 {[%clk 0:00:44]} 21... Ngf4 {[%clk 0:00:57.2]} 22. Qd2 {[%clk 0:00:32.9]}
22... Rb8 {[%clk 0:00:53.3]} 23. h4 {[%clk 0:00:28.6]} 23... b5 {[%clk 0:00:51]}
24. g3 {[%clk 0:00:26.8]} 24... Ng6 {[%clk 0:00:45.6]} 25. Ra7 {[%clk
0:00:20.8]} 25... Rb7 {[%clk 0:00:45.5]} 26. Nxb5 {[%clk 0:00:20.4]} 26... Qd7
{[%clk 0:00:45.4]} 27. c4 {[%clk 0:00:17.7]} 27... Rxa7 {[%clk 0:00:43.4]} 28.
Bxa7 {[%clk 0:00:18.6]} 28... Qb7 {[%clk 0:00:37.8]} 29. Qc2 {[%clk 0:00:16.9]}
29... Ngf8 {[%clk 0:00:33.4]} 30. Be3 {[%clk 0:00:16.6]} 30... Nd7 {[%clk
0:00:33.7]} 31. Nd2 {[%clk 0:00:15.5]} 31... Ndc5 {[%clk 0:00:33.1]} 32. b4
{[%clk 0:00:15.3]} 32... Na6 {[%clk 0:00:31.6]} 33. Qa4 {[%clk 0:00:15]} 33...
Qc6 {[%clk 0:00:30.7]} 34. Qa5 {[%clk 0:00:12.1]} 34... g6 {[%clk 0:00:27.1]}
35. Na7 {[%clk 0:00:11.3]} 35... Qb7 {[%clk 0:00:26.6]} 36. Qb5 {[%clk
0:00:11.2]} 36... Qxb5 {[%clk 0:00:23.5]} 37. cxb5 {[%clk 0:00:10]} 37... Nxb4
{[%clk 0:00:22.6]} 38. b6 {[%clk 0:00:09.2]} 38... Nd8 {[%clk 0:00:23.1]} 39.
Nc4 {[%clk 0:00:08.2]} 39... Nb7 {[%clk 0:00:22.7]} 40. Bd2 {[%clk 0:00:04.6]}
40... d5 {[%clk 0:00:22]} 41. Nxe5 {[%clk 0:00:03.5]} 41... dxe4 {[%clk
0:00:18.5]} 42. Nxf7 {[%clk 0:00:04]} 42... Nd5 {[%clk 0:00:14.9]} 43. Nxh6
{[%clk 0:00:03.2]} 43... Bc5 {[%clk 0:00:14.3]} 44. Ng4 {[%clk 0:00:02.5]} 44...
Bxb6 {[%clk 0:00:13]} 45. Nc6 {[%clk 0:00:02.8]} 45... Nd6 {[%clk 0:00:11.7]}
46. Kg2 {[%clk 0:00:03]} 46... Nf5 {[%clk 0:00:11.8]} 47. Nce5 {[%clk
0:00:02.6]} 47... e3 {[%clk 0:00:11.3]} 48. fxe3 {[%clk 0:00:03.2]} 48... Ndxe3+
{[%clk 0:00:11.9]} 49. Bxe3 {[%clk 0:00:03.2]} 49... Nxe3+ {[%clk 0:00:12.3]}
50. Nxe3 {[%clk 0:00:03.1]} 50... Bxe3 {[%clk 0:00:13.2]} 51. Kf3 {[%clk
0:00:03.5]} 51... Bd4 {[%clk 0:00:13.2]} 52. Nf7 {[%clk 0:00:03]} 52... Kg7
{[%clk 0:00:12.7]} 53. Nd6 {[%clk 0:00:03.2]} 53... Bc3 {[%clk 0:00:12.7]} 54.
Kg4 {[%clk 0:00:03.4]} 54... Kf6 {[%clk 0:00:12.8]} 55. Ne4+ {[%clk 0:00:03.8]}
1-0